Cogmind - Beta 13 @@@ ROGUE MODE // 2024.08.05 @ 23:21:58 Player: Wotf Result: Destroyed by OH-Y88(R) with Subdweller Beam Cannon Performance ------------- Evolutions (0) 0 Regions Visited (2) 400 Robots Destroyed (17) 85 Value Destroyed (495) 495 Prototype IDs (0) 0 Alien Tech Used (0) 0 Bonus (0) 0 TOTAL SCORE: 980 Bonus ------- None Cogmind --------- Core Integrity 0/250 Matter 17/300 Energy 249/250 System Corruption 0% Temperature Cool (9) Movement Rolling (130) Ox2 Location -10/Subcaves Parts ------- > --- POWER (1) -------- Ion Engine > --- PROPULSION (2) --- Compact Wheel Subdweller Monowheel > --- UTILITY (2) ------ High-capacity Storage Unit Seismic Detector > --- WEAPON (2) ------- (None) > --- INVENTORY (20) --- Light Ion Engine Subdweller Power Source Aluminum Leg Hover Unit Hover Unit Hover Unit Heat Sink Disposable Heat Sink Small Storage Unit Small Battery (100) Small Battery (100) Subdweller Optics ECM Suite Light Armor Plating Medium Laser Particle Gun Beam Cannon Beam Cannon Assault Rifle Mining Laser Peak State ------------ > --- POWER ------------ Ion Engine > --- PROPULSION ------- Compact Wheel Subdweller Monowheel > --- UTILITY ---------- High-capacity Storage Unit Seismic Detector > --- WEAPON ----------- Battle Cannon Grenade Launcher > --- INVENTORY -------- Light Ion Engine Subdweller Power Source Aluminum Leg Hover Unit Hover Unit Hover Unit Heat Sink Disposable Heat Sink Small Storage Unit Small Battery Small Battery Subdweller Optics ECM Suite Light Armor Plating Medium Laser Particle Gun Beam Cannon Beam Cannon Assault Rifle Mining Laser [Rating: 11] Favorites ----------- Power Light Ion Engine Engine Light Ion Engine Propulsion Compact Wheel Wheel Compact Wheel Utility High-capacity Storage Unit Device Seismic Detector Storage High-capacity Storage Unit Processor Visual Processing Unit Weapon Beam Cannon Energy Gun EM Pulse Gun Energy Cannon Beam Cannon Ballistic Gun Assault Rifle Ballistic Cannon Battle Cannon Launcher Grenade Launcher Special Weapon Mining Laser Build | -11 -10 -10 ------- Run | Yrd Mat Sub Slots Evolved . | . . . Power . | . . . Propulsion . | . . . Utility . | . . . Weapon . | . . . Parts Attached 29 | 7 8 14 Power 3 | 1 1 1 Engine 3 | 1 1 1 Core . | . . . Reactor . | . . . Propulsion 5 | 2 1 2 Treads . | . . . Leg . | . . . Wheel 5 | 2 1 2 Hover . | . . . Flight . | . . . Utility 7 | 2 5 . Device 4 | 1 3 . Storage 2 | 1 1 . Processor 1 | . 1 . Hackware . | . . . Protection . | . . . Artifact . | . . . Weapon 14 | 2 1 11 Energy Gun 3 | 2 . 1 Energy Cannon 3 | . 1 2 Ballistic Gun 2 | . . 2 Ballistic Cannon 1 | . . 1 Launcher 3 | . . 3 Special Weapon 2 | . . 2 Impact Weapon . | . . . Slashing Weapon . | . . . Piercing Weapon . | . . . Special Melee Weapon . | . . . Unidentified Prototypes . | . . . Parts Lost 4 | . 2 2 Power . | . . . Propulsion 1 | . 1 . Utility . | . . . Weapon 3 | . 1 2 Highest Loss Streak 1 | . 1 1 To Critical Strikes . | . . . Average Slot Usage (%) 98 | . 97 98 Engine 14 | . 14 14 Wheel 27 | . 27 28 Device 12 | . 10 14 Storage 14 | . 14 14 Processor 1 | . 3 . Energy Gun 7 | . 12 3 Energy Cannon 8 | . 13 4 Ballistic Gun 3 | . . 5 Special Weapon 5 | . . 9 Naked Turns . | . . . Heaviest Build 52 | 12 49 52 Greatest Support 36 | 26 32 36 Greatest Overweight (x) 3 | 2 3 3 Average Overweight (x) . | . . 1 Largest Inventory Capacity 20 | 8 20 20 Average Capacity 19 | 7 18 20 Most Carried 20 | 8 20 20 Average Carried 17 | 4 15 19 Final Capacity 20 | 8 20 20 Final Carried 20 | 8 20 20 Class Distribution -------------------- 100% | Mutant Dominant Class ---------------- Mutant | -10/Materials Mutant | -10/Subcaves Resources | -11 -10 -10 ----------- Run | Yrd Mat Sub Matter Collected 401 | 247 88 66 Remotely . | . . . Salvage Created 580 | 63 378 139 Parts 45 | 4 26 15 Haulers Intercepted 1 | . 1 . Recyclers Shooed 1 | . 1 . Parts Field Recycled . | . . . Retrieved Matter . | . . . Parts Self-Destructed 4 | . . 4 Prevented . | . . . Kills | -11 -10 -10 ------- Run | Yrd Mat Sub Combat Hostiles Destroyed 10 | . 5 5 Guns 4 | . 2 2 Cannons 4 | . 3 1 AOE 2 | . . 2 Classes Destroyed 8 | 2 4 2 Tunneler 1 | 1 . . Hauler 1 | . 1 . Recycler 2 | 1 1 . Operator 1 | . 1 . Watcher 2 | . 2 . Grunt 5 | . 5 . Artisan 1 | . . 1 Subdweller 5 | . . 5 Best Kill Streak 3 | 2 3 3 Combat Bots Only 3 | . 3 3 Max Kills in Single Turn 3 | 1 1 3 Gunslinging . | . . . Exploded 2 | . . 2 Melee . | . . . Uniques/NPCs Destroyed . | . . . Combat | -11 -10 -10 -------- Run | Yrd Mat Sub Hostile Shots Fired 54 | . 27 27 Missed 14 | . 6 8 Damage Taken 846 | 4 303 539 Core 274 | . 76 198 Absorbed by Shields . | . . . Core Remaining (%) 100 | 100 . . Volleys Fired 206 | 2 29 175 Largest 2 | 2 2 2 Hottest 160 | 80 100 160 Shots Fired 326 | 4 52 270 Gun 81 | 4 23 54 Cannon 87 | . 29 58 Launcher 14 | . . 14 Special 144 | . . 144 Kinetic 19 | . . 19 Thermal 268 | 2 29 237 Explosive 14 | . . 14 Electromagnetic 25 | 2 23 . Robot Hit Streak 21 | 1 8 21 Robot Miss Streak 3 | 3 3 1 Penetration Max . | . . . Secondary Targets . | . . . Shots Hit Robots 57 | 1 30 26 Core Hits 28 | 2 14 12 Critical Kills . | . . . Critical Parts Destroyed . | . . . Critical Strikes 1 | . 1 . Corrupt 1 | . 1 . Melee Attacks . | . . . Impact . | . . . Slashing . | . . . Piercing . | . . . Sneak Attacks . | . . . Combat Hostiles . | . . . Follow-up Attacks . | . . . Damage Inflicted 1328 | 70 530 728 Guns 421 | 25 259 137 Cannons 373 | . 230 143 Explosions 510 | 45 41 424 Melee . | . . . Ramming . | . . . Kinetic 262 | . . 262 Thermal 370 | 57 271 42 Explosive 424 | . . 424 Electromagnetic 272 | 13 259 . Impact . | . . . Slashing . | . . . Piercing . | . . . Highest Corruption . | . . . Average Corruption . | . . . Corruption Purged . | . . . Corruption Blocked . | . . . Overload Shots . | . . . Overflow Damage . | . . . Projectiles . | . . . Explosions . | . . . Melee . | . . . Knockbacks 1 | . . 1 Impact . | . . . Kinetic 1 | . . 1 Secondary . | . . . Self-Inflicted Damage 21 | 4 . 17 Shots 4 | 1 . 3 Rammed . | . . . Targets Rammed . | . . . Kicked . | . . . Crushed . | . . . Highest Temperature 309 | 30 309 . Average Temperature 110 | 16 115 . Received Heat Transfer 327 | . 174 153 Effects 3 | . 3 . Energy Bleed 1 | . 1 . Interference 2 | . 2 . Siege Activations . | . . . Robots Corrupted . | . . . Combat Hostiles . | . . . Parts Fried 1 | . 1 . Impact Corruptions . | . . . Robots Melted . | . . . Combat Hostiles . | . . . Parts Melted 1 | . 1 . Heat Transferred 643 | 75 481 87 Parts Sabotaged . | . . . Parts Stolen . | . . . Parts Stripped . | . . . Power Chain Reactions 2 | 1 1 . Alert | -11 -10 -10 ------- Run | Yrd Mat Sub Peak Influence 123 | 10 123 . Initial 6 | . 6 . Average 45 | 3 47 . Maximum Alert Level . | . . . Low Security (%) 100 | 100 100 . Level 1 . | . . . Level 2 . | . . . Level 3 . | . . . Level 4 . | . . . Level 5 . | . . . High Security . | . . . Max Security . | . . . Squads Dispatched 1 | . 1 . Investigation . | . . . Extermination . | . . . Reinforcement 1 | . 1 . Assault . | . . . Garrison . | . . . Intercept . | . . . Searches Triggered . | . . . Construction Impeded . | . . . Haulers Reinforced . | . . . Active Scanning Responses . | . . . Cargo Convoy Interrupts . | . . . Stealth | -11 -10 -10 --------- Run | Yrd Mat Sub Distress Signals . | . . . Communications Jammed . | . . . Distress Signals . | . . . Times Spotted 23 | . 17 6 Peak Tracking Total 4 | . 4 2 Tactical Retreats 3 | . 3 . Traps | -11 -10 -10 ------- Run | Yrd Mat Sub Traps Triggered 1 | . . 1 Indirectly . | . . . Trap Hack Attempts . | . . . Triggered . | . . . Disarmed . | . . . Reprogrammed . | . . . Reused . | . . . Traps Extracted . | . . . Installed . | . . . Triggered . | . . . Machines | -11 -10 -10 ---------- Run | Yrd Mat Sub Machines Disabled 3 | . 3 . Max in Single Turn 1 | . 1 . Machines Repaired . | . . . Machines Dismantled . | . . . Machines Sabotaged . | . . . Overloaded Fab Kills . | . . . Hacking | -11 -10 -10 --------- Run | Yrd Mat Sub Machines Accessed 5 | . 5 . Terminals 5 | . 5 . Fabricators . | . . . Repair Stations . | . . . Recycling Units . | . . . Scanalyzers . | . . . Garrison Access . | . . . Total Hacks 17 | . 17 . Successful 4 | . 4 . Failed 13 | . 13 . Catastrophic 2 | . 2 . Database Lockouts . | . . . Manual 13 | . 13 . Terminals 17 | . 17 . Fabricators . | . . . Repair Stations . | . . . Recycling Units . | . . . Scanalyzers . | . . . Garrison Access . | . . . Terminal Hacks 4 | . 4 . Robot Analysis 2 | . 2 . Scanalyzer Index 1 | . 1 . Locate Traps 1 | . 1 . Fabricator Hacks . | . . . Repair Station Hacks . | . . . Recycling Unit Hacks . | . . . Scanalyzer . | . . . Garrison Access Hacks . | . . . Unauthorized Hacks . | . . . Terminals . | . . . Fabricators . | . . . Repair Stations . | . . . Recycling Units . | . . . Scanalyzers . | . . . Garrison Access . | . . . Data Cores Recovered 1 | . 1 . Used . | . . . Hacking Detections 5 | . 5 . Full Trace Events . | . . . Feedback Events . | . . . Feedback Blocked . | . . . Robot Schematics Acquired . | . . . Robots Built . | . . . Authchips . | . . . Time . | . . . Total Robot Build Rating . | . . . Part Schematics Acquired . | . . . Parts Built . | . . . Authchips . | . . . Time . | . . . Total Part Build Rating . | . . . Parts Repaired . | . . . Time . | . . . Parts Recycled . | . . . Recycled Matter . | . . . Retrieved Matter . | . . . Retrieved Components . | . . . Parts Scanalyzed . | . . . Part Schematics Acquired . | . . . Parts Damaged . | . . . Bothacking | -11 -10 -10 ------------ Run | Yrd Mat Sub Used RIF Installer . | . . . Robots Hacked . | . . . Non-combat . | . . . Combat . | . . . Robot Hacks Applied . | . . . Relay Couplers Released . | . . . Fabnet Peak Effective % . | . . . Robots Rewired . | . . . Allies Hacked . | . . . Hacks Repelled . | . . . Allies | -11 -10 -10 -------- Run | Yrd Mat Sub Total Allies . | . . . Largest Group . | . . . Highest-Rated Group . | . . . Highest-Rated Ally . | . . . Total Orders . | . . . Ally Attacks . | . . . Total Damage . | . . . Kills . | . . . Allies Corrupted . | . . . Allies Melted . | . . . Intel | -11 -10 -10 ------- Run | Yrd Mat Sub Robot Analysis Total 2 | . 2 . Derelict Logs Recovered . | . . . Drone Launches . | . . . Drone Recoveries . | . . . Exploration | -11 -10 -10 ------------- Run | Yrd Mat Sub Turns Passed 3218 | 74 1395 1749 Spaces Moved 2043 | 53 1169 821 Core 6 | 6 . . Treads . | . . . Legs . | . . . Wheels 2037 | 47 1169 821 Hover . | . . . Flight . | . . . Fastest Speed 50 | 50 90 115 Average Speed 110 | 92 107 116 Slowest Speed 150 | 150 145 145 Overloaded Moves . | . . . Propulsion Burnouts . | . . . Robots Hopped . | . . . Cave-ins Triggered . | . . . Exploration Rate (%) 34 | 3 71 30 Regions Visited 2 Branch Regions 1 Pre-discovered Areas 1 | . . 1 Known Exits Taken . | . . . Unknown Exits Taken 2 | 1 1 . Scrap Searched . | . . . Spaces Dug 21 | . . 21 Terrain Destroyed 70 | 1 . 69 Melee . | . . . Projectile . | . . . AOE 70 | 1 . 69 Terrain Rammed . | . . . Walls Destroyed . | . . . Machines Disabled . | . . . Actions | -11 -10 -10 --------- Run | Yrd Mat Sub Total 2388 | 71 1262 1055 Wait 61 | . 25 36 Move 2041 | 52 1168 821 Hop . | . . . Pick Up 35 | 10 21 4 Fast Attach 7 | 5 2 . Attach 3 | 2 . 1 Detach . | . . . Swap 19 | . 6 13 Drop 16 | . 11 5 Fire 206 | 2 29 175 Melee . | . . . Ram . | . . . Kick . | . . . Crush . | . . . Escape Stasis . | . . . Rewire . | . . . Trap . | . . . Miscellaneous . | . . . Route ------- -11/Scrapyard -10/Materials (discovered 3 exits: [*Mat] / [*Min] / [*Sub]) -10/Subcaves (discovered 1 exit: [*Mat]) History --------- Turn | Location | Event 23 | -11/Scrapyard | Discovered new exit (range 14) 75 | -11/Scrapyard | Entered Materials 123 | -10/Materials | Discovered new exit (range 12) 149 | -10/Materials | Discovered new exit (range 3) 302 | -10/Materials | Build established: Mutant 930 | -10/Materials | Discovered new exit (range 6) 1470 | -10/Materials | Entered Subcaves 1483 | -10/Subcaves | Learned location of Zion (-7) 1483 | -10/Subcaves | Met a Zionite searching for "candidates" 1587 | -10/Subcaves | A swath of the cavern ceiling suddenly collapsed 2492 | -10/Subcaves | Ambushed by Subdweller buried in earth 2508 | -10/Subcaves | Core integrity fell below 50% 2516 | -10/Subcaves | Core integrity fell below 20% 2533 | -10/Subcaves | Shifting Twisted Machinery released Flamer 2533 | -10/Subcaves | Shifting Twisted Machinery released Sub. Optics 2611 | -10/Subcaves | A swath of the cavern ceiling suddenly collapsed 2640 | -10/Subcaves | Shifting Twisted Machinery released Battle Cannon 2672 | -10/Subcaves | Discovered new exit (range 13) 2820 | -10/Subcaves | Shifting Twisted Machinery released Shrapnel Trap 3063 | -10/Subcaves | Ambushed by angry Subdweller bent on revenge 3219 | -10/Subcaves | Destroyed by OH-Y88(R) with Subdweller Beam Cannon Last Messages --------------- LV-B9E(R) angrily emerges from the Twisted Machinery. LV-B9E(R): "MADSUB!" LV-B9E(R) knocked back. LV-B9E(R) destroyed. Dropped Lgt. Ion Engine. Acquired Sub. Power Source. Dropped Com. Wheel. Acquired 17 matter. Dropped Sub. Monowheel. Subatomizers dissect the Sub. Optics, destroying it. Subatomizers dissect the Sub. Monowheel. Triggered Piercing Trap. Spikes shoot up from the floor. Critical hit (Impale). Grenade Launcher destroyed. Sub. Monowheel shoots sparks and powers down. Subatomizers dissect the Sub. Power Source. Battle Cannon destroyed. Map ----- +----------------------------------------------------+ | ?????????????????????????????????????????????????? | | ?????????????????????????????????????????????????? | | ?????????????????????????????????????????????????? | | ?????????????????????????????????????????????????? | | ?????????????????????????????????????????????????? | | ?????????????????????????????????????????????????? | | ?????????????????????????????????????????????????? | | ?????????????????????????????????????????????????? | | ?????????????????????????????????????????????????? | | ?????????????????????????????????????????????????? | | ?????????????????????????????????????????????????? | | ?????????????????????????????????????????????????? | | ?????????????????????????????????????????????????? | | ?????????????????????????????????????????????????? | | ?????????????????????????????????????????????????? | | ?????????????????????????????????????????????????? | | ????????????????????????????????????????????????? | | ??###?????????????????????????????????????????? | | ### ###??????????????????????????????????????? | | ##?###?###?????????????????????????????? | | ## # ### ### ###????????????###????????????? | | # ## #???????###### ##???????????? | | # ##?# R ![###????## #???????????? | | # #?## #### " % ###### #???#####???? | | # ### #?# * ;# # < ##### ####? | | # # #?## & * @ """ #? | | #?## |= # " " #? | | # ##?# " # # """"" ## | | ## #### """# ###### ## ##"""" # | | ### ""# #???# ##### ######""# | | ### ## "##### #???# # # # # #????#""# | | ##### " #??# #??## ######### | | ##??### #??## ##??# ## ## | | #????####???###??# ##### | | ## #### #????????????????# ##???### " | | #####???##????????????????####???????## ###"### | | ??????????????????????????????????????#####?###?## | | ?????????????????????????????????????????????????? | | ?????????????????????????????????????????????????? | | ?????????????????????????????????????????????????? | | ?????????????????????????????????????????????????? | | ?????????????????????????????????????????????????? | | ?????????????????????????????????????????????????? | | ?????????????????????????????????????????????????? | | ?????????????????????????????????????????????????? | | ?????????????????????????????????????????????????? | | ?????????????????????????????????????????????????? | | ?????????????????????????????????????????????????? | | ?????????????????????????????????????????????????? | | ?????????????????????????????????????????????????? | +----------------------------------------------------+ Best States ------------- Heat Dissipation 25 Energy Generation 10 Energy Capacity 250 Matter Stores 300 Matter Capacity 300 Sight Range 18 Terrain Scan Range 16 Terrain Scan Density 10 Evasion (%) 42 Item Schematics ----------------- None Robot Schematics ------------------ None Fabricated ------------ Nothing Alien Tech Used ----------------- None Achievements -------------- None Challenges ------------ None Game ------ Seed ReactionParticleTorch Manual? 0 Play Time 00:30:27 Cumulative 32.8 hours Start 2024.08.05 @ 19:48:22 End 2024.08.05 @ 23:21:58 Sessions 3 Manual Loads 0 Difficulty Rogue Special Mode None Game No. 24 Rogue 12 Adventurer 12 Explorer 0 Win Type - Total 0 Types 0/0/0/0/0/0/0/0/0 Lore% 15 Gallery% 22 Achievement% 21 Wizard Run 0 Options --------- Layout 1 ASCII 0 Keyboard 0 Movement Numpad Keybinds 0 Fullscreen 1 Font 24/Smallcaps Map View 50x35 Zoom Use 0% Tactical HUD 0 Map Filters NONE Filters NONE Steam 1 RUN: 423b8c23-4256-419e-a711-9d9f9dbbc554